Cogmind - Beta 17.1 @@@ ROGUE MODE // 2026.09.21 @ 20:23:58 Player: Caluan Result: Destroyed by G-47 Trooper with Particle Gun Performance ------------- Evolutions (0) 0 Regions Visited (1) 200 Robots Destroyed (8) 40 Value Destroyed (213) 213 Prototype IDs (0) 0 Alien Tech Used (0) 0 Bonus (0) 0 TOTAL SCORE: 453 Bonus ------- None Cogmind --------- Core Integrity 0/250 Matter 290/300 Energy 96/100 System Corruption 0% Temperature Cool (9) Movement Walking (190) Ox1 Location -10/Materials Parts ------- > --- POWER (1) -------- (None) > --- PROPULSION (2) --- Aluminum Leg Aluminum Leg > --- UTILITY (2) ------ Large Storage Unit Targeting Computer > --- WEAPON (2) ------- Mining Claw > --- INVENTORY (15) --- Aluminum Leg Aluminum Leg Aluminum Leg Flight Unit Flight Unit High-capacity Storage Unit Peak State ------------ > --- POWER ------------ Ion Engine > --- PROPULSION ------- Aluminum Leg Aluminum Leg > --- UTILITY ---------- Small Storage Unit Large Storage Unit > --- WEAPON ----------- Assault Rifle Light Assault Rifle > --- INVENTORY -------- Aluminum Leg Aluminum Leg Aluminum Leg Flight Unit Flight Unit High-capacity Storage Unit Small Laser [Rating: 7] Favorites ----------- Power Ion Engine Engine Ion Engine Propulsion Aluminum Leg Treads Light Treads Leg Aluminum Leg Utility Large Storage Unit Storage Large Storage Unit Processor Targeting Computer Weapon Assault Rifle Energy Gun EM Pulse Gun Ballistic Gun Assault Rifle Slashing Weapon Mining Claw Build | -11 -10 ------- Run | Yrd Mat Slots Evolved . | . . Power . | . . Propulsion . | . . Utility . | . . Weapon . | . . Parts Attached 14 | 8 6 Power 1 | 1 . Engine 1 | 1 . Core . | . . Reactor . | . . Propulsion 6 | 4 2 Treads 2 | 2 . Leg 4 | 2 2 Wheel . | . . Hover . | . . Flight . | . . Utility 3 | 1 2 Device . | . . Storage 2 | 1 1 Processor 1 | . 1 Hackware . | . . Protection . | . . Artifact . | . . Weapon 4 | 2 2 Energy Gun 1 | 1 . Energy Cannon . | . . Ballistic Gun 2 | 1 1 Ballistic Cannon . | . . Launcher . | . . Special Weapon . | . . Impact Weapon . | . . Slashing Weapon 1 | . 1 Piercing Weapon . | . . Special Melee Weapon . | . . Unidentified Prototypes . | . . Parts Lost 2 | . 2 Power 1 | . 1 Propulsion . | . . Utility . | . . Weapon 1 | . 1 Highest Loss Streak 1 | . 1 To Critical Strikes . | . . Average Backups 6 | 1 7 Power . | . . Propulsion 4 | . 4 Utility . | . . Weapon 1 | . 1 Tool/Special . | . . Unused Backups 6 | . 6 Power . | . . Propulsion 3 | . 3 Utility 1 | . 1 Weapon 2 | . 2 Tool/Special . | . . Average Slot Usage (%) 82 | . 82 Engine 8 | . 8 Treads 9 | . 9 Leg 18 | . 18 Storage 14 | . 14 Processor 5 | . 5 Energy Gun 3 | . 3 Ballistic Gun 21 | . 21 Peak Build Rating 7 | 6 7 Average Rating 5 | 3 5 On Entrance 3 | . 6 Avg Prop Armor Cover (%) . | . . Naked Turns . | . . Heaviest Build 28 | 14 28 Greatest Support 40 | 40 40 Greatest Overweight (x) 1 | . 1 Average Overweight (x) . | . . Largest Inventory Capacity 15 | 8 15 Average Capacity 11 | 6 11 Most Carried 9 | 3 9 Average Carried 6 | 1 7 Final Capacity 15 | 8 15 Final Carried 6 | 3 6 Class Distribution -------------------- 100% | Mutant Dominant Class ---------------- Mutant | -10/Materials Resources | -11 -10 ----------- Run | Yrd Mat Matter Collected 472 | 270 202 Remotely . | . . Salvage Created 273 | . 273 Parts 14 | . 14 Haulers Intercepted . | . . Recyclers Shooed 2 | . 2 Parts Field Recycled . | . . Retrieved Matter . | . . Parts Self-Destructed . | . . Prevented . | . . Parts Restored . | . . Kills | -11 -10 ------- Run | Yrd Mat Combat Hostiles Destroyed 8 | . 8 Guns 8 | . 8 Classes Destroyed 2 | . 2 Swarmer 3 | . 3 Grunt 5 | . 5 Best Kill Streak 3 | . 3 Combat Bots Only 3 | . 3 Max Kills in Single Turn 2 | . 2 Gunslinging 1 | . 1 Exploded . | . . Melee . | . . Uniques/NPCs Destroyed . | . . Combat | -11 -10 -------- Run | Yrd Mat Hostile Shots Fired 86 | . 86 Missed 22 | . 22 Hits 64 | . 64 Projectile 64 | . 64 Damage Taken 754 | . 754 Core 254 | . 254 Absorbed by Shields . | . . Core Remaining (%) 100 | 100 . Volleys Fired 46 | . 46 Largest 2 | . 2 Hottest 60 | . 60 Shots Fired 85 | . 85 Gun 85 | . 85 Cannon . | . . Launcher . | . . Special . | . . Kinetic 67 | . 67 Thermal . | . . Explosive . | . . Electromagnetic 18 | . 18 Robot Hit Streak 7 | . 7 Robot Miss Streak 3 | . 3 Penetration Max . | . . Secondary Targets 1 | . 1 Max Gunslinging Chain 1 | . 1 Shots Hit Robots 64 | . 64 Core Hits 17 | . 17 Critical Kills . | . . Critical Parts Destroyed . | . . Critical Strikes . | . . Melee Attacks 12 | . 12 Impact . | . . Slashing 12 | . 12 Piercing . | . . Sneak Attacks . | . . Combat Hostiles . | . . Follow-up Attacks . | . . Damage Inflicted 875 | 3 872 Guns 649 | . 649 Cannons . | . . Explosions . | . . Melee 212 | . 212 Ramming 14 | 3 11 Kinetic 519 | . 519 Thermal . | . . Explosive . | . . Electromagnetic 130 | . 130 Impact . | . . Slashing 212 | . 212 Piercing . | . . Highest Corruption . | . . Average Corruption . | . . Corruption Purged . | . . Corruption Blocked . | . . Overload Shots . | . . Overflow Damage . | . . Projectiles . | . . Explosions . | . . Melee . | . . Knockbacks 1 | . 1 Impact 1 | . 1 Kinetic . | . . Secondary . | . . Self-Inflicted Damage . | . . Shots . | . . Rammed 3 | 1 2 Targets Rammed 5 | 1 4 Kicked 2 | . 2 Crushed . | . . Highest Temperature 102 | . 102 Average Temperature 44 | . 44 Received Heat Transfer 348 | . 348 Siege Activations . | . . Martial Activations . | . . Shielding Activations . | . . Robots Disrupted . | . . Combat Hostiles . | . . Robots Corrupted . | . . Combat Hostiles . | . . Parts Fried . | . . Impact Corruptions . | . . Robots Melted . | . . Combat Hostiles . | . . Parts Melted . | . . Heat Transferred . | . . Parts Sabotaged . | . . Parts Stolen . | . . Parts Stripped . | . . Power Chain Reactions . | . . Alert | -11 -10 ------- Run | Yrd Mat Maximum Alert Level . | . . Low Security (%) 100 | 100 100 Level 1 . | . . Level 2 . | . . Level 3 . | . . Level 4 . | . . Level 5 . | . . High Security . | . . Max Security . | . . Peak Influence 70 | . 70 Initial . | . . Average 8 | . 9 Influence Increases 205 | . 205 Destroy 0b10 Robot/C 160 | . 160 Destroy Leader 30 | . 30 Lose Combat Pursuer 15 | . 15 Influence Decreases 190 | . 190 Time Decay 170 | . 170 Lost Part 20 | . 20 Squads Dispatched 1 | . 1 Investigation 1 | . 1 Extermination . | . . Reinforcement . | . . Assault . | . . Garrison . | . . Intercept . | . . Searches Triggered . | . . Construction Impeded . | . . Haulers Reinforced . | . . Active Scanning Responses . | . . Cargo Convoy Interrupts . | . . Stealth | -11 -10 --------- Run | Yrd Mat Distress Signals . | . . Communications Jammed . | . . Distress Signals . | . . Times Spotted 20 | . 20 Peak Tracking Total 4 | . 4 Tactical Retreats 1 | . 1 Traps | -11 -10 ------- Run | Yrd Mat Traps Triggered 2 | . 2 Indirectly . | . . Trap Hack Attempts . | . . Triggered . | . . Disarmed . | . . Reprogrammed . | . . Reused . | . . Traps Extracted . | . . Installed . | . . Triggered . | . . Machines | -11 -10 ---------- Run | Yrd Mat Machines Disabled . | . . Max in Single Turn . | . . Machines Repaired . | . . Machines Dismantled . | . . Machines Sabotaged . | . . Overloaded Fab Kills . | . . Hacking | -11 -10 --------- Run | Yrd Mat Machines Accessed . | . . Terminals . | . . Fabricators . | . . Repair Stations . | . . Recycling Units . | . . Scanalyzers . | . . Garrison Access . | . . Total Hacks . | . . Successful . | . . Failed . | . . Catastrophic . | . . Database Lockouts . | . . Manual . | . . Terminals . | . . Fabricators . | . . Repair Stations . | . . Recycling Units . | . . Scanalyzers . | . . Garrison Access . | . . Terminal Hacks . | . . Fabricator Hacks . | . . Repair Station Hacks . | . . Recycling Unit Hacks . | . . Scanalyzer . | . . Garrison Access Hacks . | . . Unauthorized Hacks . | . . Terminals . | . . Fabricators . | . . Repair Stations . | . . Recycling Units . | . . Scanalyzers . | . . Garrison Access . | . . Data Cores Recovered . | . . Used . | . . Hacking Detections . | . . Full Trace Events . | . . Feedback Events . | . . Feedback Blocked . | . . Robot Schematics Acquired . | . . Robots Built . | . . Authchips . | . . Time . | . . Total Robot Build Rating . | . . Part Schematics Acquired . | . . Parts Built . | . . Authchips . | . . Time . | . . Total Part Build Rating . | . . Part Studies Acquired . | . . Parts Repaired . | . . Time . | . . Parts Recycled . | . . Recycled Matter . | . . Retrieved Matter . | . . Retrieved Components . | . . Parts Scanalyzed . | . . Part Schematics Acquired . | . . Parts Damaged . | . . Bothacking | -11 -10 ------------ Run | Yrd Mat Used RIF Installer . | . . Robots Hacked . | . . Non-combat . | . . Combat . | . . Robot Hacks Applied . | . . Relay Couplers Released . | . . Fabnet Peak Effective % . | . . Robots Rewired . | . . Allies Hacked . | . . Hacks Repelled . | . . Allies | -11 -10 -------- Run | Yrd Mat Total Allies . | . . Largest Group . | . . Highest-Rated Group . | . . Highest-Rated Ally . | . . Total Orders . | . . Ally Attacks . | . . Total Damage . | . . Kills . | . . Allies Corrupted . | . . Allies Melted . | . . Intel | -11 -10 ------- Run | Yrd Mat Active Infowar (turns) . | . . Robot Analysis Total . | . . Derelict Logs Recovered . | . . Drone Launches . | . . Drone Recoveries . | . . Exploration | -11 -10 ------------- Run | Yrd Mat Turns Passed 1002 | 90 912 Spaces Moved 481 | 60 421 Core 8 | 8 . Treads 143 | 14 129 Legs 330 | 38 292 Wheels . | . . Hover . | . . Flight . | . . Fastest Speed 50 | 50 120 Average Speed 161 | 120 167 Slowest Speed 190 | 160 190 Overloaded Moves . | . . Propulsion Burnouts . | . . Robots Hopped . | . . Potential Cave-ins . | . . Cave-ins Triggered . | . . Exploration Rate (%) 38 | 4 73 Regions Visited 1 Branch Regions . Pre-discovered Areas . | . . Known Exits Taken . | . . Unknown Exits Taken 1 | 1 . Scrap Searched . | . . Spaces Dug . | . . Terrain Destroyed . | . . Melee . | . . Projectile . | . . AOE . | . . Terrain Rammed . | . . Walls Destroyed . | . . Machines Disabled . | . . Actions | -11 -10 --------- Run | Yrd Mat Total 601 | 77 524 Wait 18 | . 18 Move 480 | 59 421 Hop . | . . Pick Up 19 | 9 10 Fast Attach 1 | . 1 Attach 11 | 6 5 Detach . | . . Swap 2 | 2 . Drop 7 | . 7 Fire 46 | . 46 Melee 12 | . 12 Ram . | . . Kick 2 | . 2 Crush 3 | 1 2 Escape Stasis . | . . Rewire . | . . Trap . | . . Miscellaneous . | . . Route ------- -11/Scrapyard -10/Materials (discovered 2 exits: [*Mat x2]) History --------- Turn | Location | Event 4 | -11/Scrapyard | Discovered new exit (range 14) 91 | -11/Scrapyard | Entered Materials 294 | -10/Materials | Discovered new exit (range 5) 301 | -10/Materials | Build established: Mutant 627 | -10/Materials | Core integrity fell below 50% 657 | -10/Materials | Discovered new exit (range 16) 992 | -10/Materials | Core integrity fell below 20% 1003 | -10/Materials | Destroyed by G-47 Trooper with Particle Gun Last Messages --------------- 00941_ Dropped Lgt. Assault Rifle. 00942_ Dropped Assault Rifle. 00954_ T-07 Excavator is excavating. 00960_ R-06 Scavenger collects Lgt. Assault Rifle. 00969_ Dropped Corrupted Lgt. Cannon. 00969_ Dropped Sml. Laser. 00975_ R-06 Scavenger collects Corrupted Lgt. Cannon. 00978_ R-06 Scavenger inserts Corrupted Wheel into recycling unit. 00979_ R-06 Scavenger collects Sml. Laser. 00981_ R-06 Scavenger inserts Terrain Scanner into recycling unit. 00984_ R-06 Scavenger inserts Corrupted Welding Torch into recycling unit. 00986_ R-06 Scavenger inserts Assault Rifle into recycling unit. 00989_ R-06 Scavenger inserts Sml. Laser into recycling unit. Map ----- +----------------------------------------------------+ | ????????????????????????????????????###?#! # | | ????????????????????????????????????# # # | | ????????????????????????????????????# < # # | | ????????????????????????????????????# # # | | ????????????????????????????????????# ###+## | | ????????????????????????????????????# = % | | ????????????????????????????????????# = | | ????????????????????????????????????# | | ????????????????????????????????????########## | | ?????????????????????????????????????????????? | | ?????????????????????????????????????????????? | | ?????????????????????????????????????????????? | | ?????????????????????????????????????????????? | | ?????????????????????????????????????????????? | | ?????????????????????????????????????????####? | | ???????????????????????????????????????? | | ??????????#???????????????????????????? """ | | ??????????# ??????????????????????????# """ | | ?????????## ?#???#######????????????# """ | | ?????????# #T### ####?????????# | | ?????????# # #?????????# """ | | ?????????# T #?????????# """ | | ?????????# #????????????? ! """ | | ?????????# ##### #?????????????? | | ???????????????????###g####??????????????####? | | ???????????????????# @ #??????############# | | ???????????????????# "" #??????# % | | ???????????????????# "Y #??????# "" % """ | | ???????????????????# "" #??????# "Y * """ | | ???????????????????# r #??????# "" * """ | | ?????????????####### #??????# | | ????????? #### ##+######?????# | | ????????# #?????############# | | ????????+ ###?????# ##### | | ????????# T#?????# | | ????????### ## ! ""#?????# | | ?????????????##### ###?????# ! | | ?????????????????# #???????# ###+# | | ?????????????????# ########## ## | | ?????????????????# ^ + ## ## "" | | ????????????????## # ## ## "" | | ????????????????# """ # ## ## "" | | ????????????????# ^""" ########## ## | | ????????????????# """ ########## ## "" | | ????????????????# """ + "" | | ????????????????# ######## # "" | | ????????????????## #??????# """ # | | ?????????????????#^ """ #??????# """ ##### | | ?????????????????+ """ #??????# """ % #?? | | ?????????????????# """ #??????# % %#?? | +----------------------------------------------------+ Best States ------------- Heat Dissipation 25 Energy Generation 10 Energy Capacity 250 Matter Stores 300 Matter Capacity 300 Sight Range 16 Terrain Scan Density 10 Evasion (%) 55 Targeting Accuracy 5 Recoil Reduction 2 Item Schematics ----------------- None Robot Schematics ------------------ None Fabricated ------------ Nothing Repaired ---------- Nothing Studied --------- None Alien Tech Used ----------------- None Achievements -------------- None Challenges ------------ None Game ------ Seed ParticleDeuteriumSlamshotty Manual? 0 Play Time 00:07:57 Cumulative 313.3 hours Start 2026.09.21 @ 20:19:42 End 2026.09.21 @ 20:23:58 Sessions 1 Manual Loads 0 Difficulty Rogue Special Mode None Game No. 344 Rogue 344 Adventurer 0 Explorer 0 Win Type - Total 3 Types 3/0/0/0/0/0/0/0/0/0 Lore% 51 Gallery% 59 Achievement% 46 Wizard Run 0 Options --------- Layout 1 ASCII 0 Keyboard 0 Movement Numpad Keybinds 0 Fullscreen 2 Font 24/Smallcaps Map View 50x35 Zoom Use 0% Tactical HUD 1 Map Filters NONE Filters NONE Steam 1 RUN: 70f6618d-a3ae-4c46-8ff7-920ab6385d78